bitfinex/quotes_ETHUSD_20241101
["timestamp","ask_amount","ask_price","bid_price","bid_amount"]
[1730460821201,3.96654,2521.1,2520.8,0.7939]
[1730460822089,3.9667,2521.0,2520.8,0.7939]
[1730460823240,3.9667,2521.0,2520.6,0.8143]
[1730460823419,3.96683,2520.9,2520.6,0.8143]
[1730460825428,3.96711,2520.8,2520.6,0.8143]
[1730460825605,3.96711,2520.8,2520.4,4.7819]
[1730460827032,3.96723,2520.7,2520.4,0.8143]
[1730460828433,4.62462,2520.8,2520.4,4.78191]
[1730460828793,3.96702,2520.8,2520.4,4.78191]
[1730460829095,3.96694,2520.9,2520.5,3.96743]
[1730460830112,3.96701,2520.8,2520.4,5.66481871]
[1730460830308,3.96701,2520.8,2520.4,4.78191]
[1730460831695,3.96699,2520.8,2520.4,0.8143]
[1730460833717,3.96738,2520.6,2520.1,3.96799]
[1730460833896,3.96738,2520.6,2520.1,4.77189]
[1730460834098,7.93478,2520.6,2520.1,4.77189]
[1730460835337,3.96752,2520.5,2520.1,4.77189]
[1730460837203,3.96752,2520.5,2520.1,0.8039]
[1730460837404,4.62538,2520.3,2519.9,0.7969]
[1730460837900,3.96803,2520.2,2519.8,3.96853]
[1730460838144,3.96803,2520.2,2519.7,0.8259]
[1730460838342,3.96803,2520.2,2519.7,4.7946]
[1730460838647,3.96803,2520.2,2519.7,5.82425262]
[1730460839156,3.96803,2520.2,2519.7,4.7946]
[1730460839359,4.62538,2520.3,2519.7,0.8259]
[1730460839360,3.96818,2520.1,2519.7,0.8259]
[1730460839515,3.96828,2520.0,2519.7,0.8259]
[1730460841117,3.9681,2520.1,2519.7,4.79462]
[1730460842350,3.9681,2520.1,2519.7,0.8259]
[1730460843016,3.96825,2520.0,2519.7,0.8259]
[1730460843249,3.96794,2520.2,2519.7,0.8259]
[1730460843413,3.96817,2520.1,2519.7,0.8259]
[1730460844224,3.96844,2519.9,2519.7,0.8259]
[1730460845235,3.96844,2519.9,2519.6,0.8015]
[1730460845448,3.96826,2520.0,2519.6,4.77032]
[1730460845653,3.968,2520.2,2519.6,6.58305017]
[1730460845835,3.968,2520.2,2519.7,5.86080036]
[1730460846161,3.9678,2520.3,2519.9,4.76984]
[1730460846338,3.96768,2520.4,2520.0,5.78089017]
[1730460846533,3.96768,2520.4,2519.9,6.66191049]
[1730460847248,3.96768,2520.4,2519.9,0.8015]
[1730460847426,3.96796,2520.2,2519.9,0.8015]
[1730460847628,3.9679,2520.3,2519.9,4.84925109]
[1730460847823,4.62515,2520.5,2519.9,3.75663639]
[1730460848025,3.96774,2520.4,2519.9,6.58262017]
[1730460848234,3.96774,2520.4,2519.9,6.66197905]
[1730460848547,3.96774,2520.4,2520.0,3.96822]
[1730460849262,4.62515,2520.5,2519.9,2.61423017]
[1730460849467,3.96732,2520.6,2520.2,3.96786]
[1730460850245,3.96734,2520.6,2520.2,3.96792]
[1730460850571,3.96734,2520.6,2520.1,5.78080017]
[1730460850572,3.96754,2520.5,2520.1,5.78080017]
[1730460850924,3.96754,2520.5,2520.1,9.74878017]
[1730460851180,3.96754,2520.5,2520.1,5.78071017]
[1730460851364,7.93514,2520.5,2520.1,3.96798]
[1730460851532,3.96763,2520.4,2520.0,3.96823]
[1730460851975,2.47033017,2520.7,2520.1,3.96799]
[1730460851976,3.96749,2520.5,2520.1,3.96799]
[1730460852570,3.96699,2520.8,2520.2,4.79825]
[1730460852766,3.96732,2520.6,2520.2,4.79825]
[1730460853064,3.96732,2520.6,2520.2,4.87760211]
[1730460853268,3.96732,2520.6,2520.2,4.79825]
[1730460853488,3.96732,2520.6,2520.2,4.87760092]
[1730460853771,3.9674,2520.6,2520.2,0.8304]
[1730460854535,3.96678,2521.0,2520.5,5.78013017]
[1730460854753,3.96687,2520.9,2520.5,5.78013017]
[1730460859176,3.96687,2520.9,2520.5,9.74753017]
[1730460859539,0.6576,2521.6,2520.9,0.7898]
[1730460859737,3.96612,2521.4,2521.0,1.81273017]
[1730460860035,3.96629,2521.3,2520.9,0.7898]
[1730460861778,3.96638,2521.2,2520.9,0.7898]
[1730460863073,3.96638,2521.2,2520.8,4.74238]
[1730460863242,4.62387,2521.3,2520.9,3.96682]
[1730460863445,4.62387,2521.3,2520.9,3.96681]
[1730460863446,0.6576,2521.3,2520.9,3.96681]
[1730460864475,4.62388,2521.3,2520.8,7.15071066]
[1730460865771,0.6576,2521.3,2520.9,3.96682]
[1730460866090,3.96609,2521.4,2521.0,3.9666]
[1730460866461,7.93225,2521.4,2521.0,3.9666]
[1730460866859,3.96609,2521.4,2520.8,7.15071066]
[1730460867060,3.96622,2521.3,2520.9,4.68187107]
[1730460868986,3.96609,2521.4,2520.9,4.68187107]
[1730460869188,3.96609,2521.4,2521.0,3.96666]
[1730460869689,3.96609,2521.4,2520.9,8.64861107]
[1730460869931,7.93223,2521.4,2520.9,4.68181107]
[1730460870055,3.96609,2521.4,2521.0,3.96664]
[1730460870780,3.96624,2521.3,2520.9,4.68181107]
[1730460870981,3.96624,2521.3,2521.0,0.72699412]
[1730460871147,3.96623,2521.3,2521.0,0.72699412]
[1730460871352,3.96623,2521.3,2520.9,4.68181107]
[1730460872455,3.96607,2521.4,2520.9,8.64852107]
[1730460873353,3.96607,2521.4,2521.0,3.96666]
[1730460874162,3.96621,2521.3,2520.9,4.68189107]
[1730460874673,3.96606,2521.4,2521.0,3.96667]
[1730460874879,3.96606,2521.4,2521.0,4.69365712]
[1730460875077,3.96606,2521.4,2521.0,8.66023712]
[1730460875306,3.96606,2521.4,2521.1,0.7866]
[1730460877201,0.6576,2521.5,2521.1,4.75302]
[1730460877808,4.6236,2521.5,2521.1,4.75302]
[1730460881108,4.6236,2521.5,2521.1,0.7866]
[1730460882189,3.96606,2521.4,2521.1,0.7866]
[1730460883208,3.96605,2521.4,2521.1,0.7866]
[1730460885375,0.6576,2521.5,2521.1,0.7866]
[1730460885576,4.62359,2521.5,2521.1,0.7866]
[1730460885977,3.96611,2521.4,2521.1,0.7866]
[1730460887311,4.62352,2521.5,2521.1,4.75311]
[1730460887810,4.62352,2521.5,2521.1,0.7866]
[1730460888015,3.96617,2521.4,2521.1,0.7866]
[1730460889016,8.58952,2521.5,2521.1,0.7866]
[1730460889218,3.96611,2521.4,2521.1,0.7866]
[1730460889819,3.96622,2521.3,2521.1,0.7866]
[1730460890291,3.96611,2521.4,2521.1,0.7866]
[1730460890622,3.9659,2521.5,2521.1,4.75306]
[1730460890821,3.96582,2521.6,2521.2,3.9663]
[1730460891322,3.96595,2521.5,2521.1,3.01162876]
[1730460891523,3.96582,2521.6,2521.2,3.96629]
[1730460892223,3.76582,2521.6,2521.2,3.96629]
[1730460892484,7.73167,2521.6,2521.2,3.96629]
[1730460892597,3.76582,2521.6,2521.2,1.09443288]
[1730460892795,3.96589,2521.5,2521.1,6.97810876]
[1730460895826,3.96575,2521.6,2521.2,3.9663]
[1730460896402,3.96575,2521.6,2521.1,3.01162876]
[1730460896592,3.96592,2521.5,2521.1,6.97813876]
[1730460897834,3.96575,2521.6,2521.2,3.96629]
[1730460897992,7.93157,2521.6,2521.2,5.06073288]
[1730460898192,3.96596,2521.5,2521.2,1.09444288]
[1730460898691,3.96581,2521.6,2521.2,5.06077288]
[1730460899918,3.96591,2521.5,2521.2,1.09444288]
[1730460900509,3.96573,2521.6,2521.1,1.19889859]
[1730460900791,3.96596,2521.5,2521.1,5.16538859]
[1730460902829,3.96573,2521.6,2521.1,3.01162876]
[1730460903024,3.96573,2521.6,2521.1,6.97807876]
[1730460903025,3.96593,2521.5,2521.1,6.97807876]
[1730460903202,3.96593,2521.5,2521.2,0.69780788]
[1730460903936,7.93193,2521.5,2521.2,0.69780788]
[1730460904434,3.96608,2521.4,2521.2,0.69780788]
[1730460904735,0.6576,2521.7,2521.1,3.01162876]
[1730460904736,2.47033017,2521.7,2521.1,1.19889859]
[1730460905031,3.96607,2521.4,2521.1,0.7866]
[1730460905633,3.96624,2521.3,2521.1,0.7866]
[1730460906439,7.93254,2521.3,2521.1,0.7866]
[1730460906597,3.96624,2521.3,2521.1,0.7866]
[1730460907320,3.96591,2521.5,2521.1,2.59933017]
[1730460907549,3.96591,2521.5,2521.1,11.19675002]
[1730460907866,3.96591,2521.5,2521.1,7.23029002]
[1730460908366,3.96591,2521.5,2521.1,11.19672002]
[1730460908565,3.96591,2521.5,2521.1,7.23029002]
[1730460908769,3.96591,2521.5,2521.2,0.723029]
[1730460909238,7.93192,2521.5,2521.2,0.723029]
[1730460909854,3.96591,2521.5,2521.2,0.723029]
[1730460910358,7.93189,2521.5,2521.2,0.723029]
[1730460911066,3.96591,2521.5,2521.2,0.723029]
[1730460913532,4.62325,2521.7,2521.3,0.7953319]
[1730460913729,3.96536,2521.9,2521.6,0.7661]
[1730460914047,3.96505,2522.1,2521.7,5.77830017]
[1730460915172,3.96512,2522.0,2521.7,1.81273017]
[1730460915539,3.96505,2522.1,2521.7,5.77829017]
[1730460915780,3.96505,2522.1,2521.7,6.83722967]
[1730460916269,3.96505,2522.1,2521.8,0.7894]
[1730460918436,3.96472,2522.3,2521.8,0.7894]
[1730460918637,3.96482,2522.2,2521.8,4.75478]
[1730460919579,3.96509,2522.1,2521.8,0.7894]
[1730460919779,0.6576,2522.4,2521.8,0.7894]
[1730460919780,3.96463,2522.3,2521.8,0.7894]
[1730460919994,3.96486,2522.2,2521.8,4.75479]
[1730460920654,3.96463,2522.3,2521.9,3.96526]
[1730460920859,4.48852741,2522.6,2522.2,1.81273017]
[1730460921063,3.96409,2522.7,2522.2,5.77741017]
[1730460921276,7.92819,2522.7,2522.3,0.8097]
[1730460921480,3.96416,2522.6,2522.3,0.8097]
[1730460921883,3.96409,2522.7,2522.3,0.8097]
[1730460923155,7.92823,2522.7,2522.3,0.8097]
[1730460923453,3.96421,2522.6,2522.3,0.8097]
[1730460924687,3.96417,2522.6,2522.3,0.8097]
[1730460924986,3.96402,2522.7,2522.3,4.77432]
[1730460926194,7.92812,2522.7,2522.3,4.77432]
[1730460926427,2.47033017,2523.0,2522.3,2.9654802]
[1730460926580,3.96391,2522.8,2522.4,1.81273017]
[1730460927090,3.96391,2522.8,2522.4,3.96446]
[1730460927282,3.96375,2522.9,2522.4,3.96446]
[1730460927478,3.96386,2522.8,2522.4,3.96446]
[1730460927688,3.96386,2522.8,2522.5,0.70092244]
[1730460928232,7.92785,2522.8,2522.5,0.70092244]
[1730460928426,7.92785,2522.8,2522.3,2.9654802]
[1730460928723,7.9278,2522.8,2522.3,6.9300802]
[1730460928907,3.96386,2522.8,2522.3,6.9300802]
[1730460929291,3.96386,2522.8,2522.4,3.96446]
[1730460930400,7.92784,2522.8,2522.3,6.9300802]
[1730460930718,3.96386,2522.8,2522.4,1.27074804]
[1730460930890,3.9637,2522.9,2522.4,5.23518804]
[1730460931691,3.9637,2522.9,2522.5,0.7686]
[1730460931901,3.96356,2523.0,2522.6,3.9641]
[1730460932423,3.96348,2523.1,2522.7,0.10458951]
[1730460932424,3.96338,2523.1,2522.7,0.10458951]
[1730460932585,10.26418758,2523.4,2522.9,3.96369]
[1730460932789,4.62057,2523.4,2523.0,0.10465528]
[1730460932986,6.30125758,2523.6,2523.1,0.8249]
[1730460933208,3.96318,2523.3,2523.2,0.10452253]
[1730460933622,7.92607,2523.4,2523.2,0.10452253]
[1730460933827,7.92605,2523.4,2523.2,0.10452253]
[1730460934010,3.96306,2523.3,2523.2,0.10452253]
[1730460934789,3.96302,2523.4,2523.2,0.10452253]
[1730460934790,3.96293,2523.4,2523.2,0.10452253]
[1730460935939,3.96306,2523.3,2523.2,0.10452253]
[1730460937028,4.62066,2523.3,2523.2,0.10452253]
[1730460937188,4.62066,2523.3,2522.9,0.7603]
[1730460937562,3.96345,2523.1,2522.9,0.7603]
[1730460937726,3.96345,2523.1,2523.0,0.10429432]
[1730460939236,3.96355,2523.0,2522.7,0.7603]
[1730460940307,3.96355,2523.0,2522.8,0.10442708]
[1730460942127,4.62129,2522.9,2522.8,0.10442708]
[1730460942637,3.96385,2522.8,2522.4,4.73831]
[1730460942842,3.96385,2522.8,2522.5,0.58388932]
[1730460943336,3.96385,2522.8,2522.4,0.7739]
[1730460943508,3.96438,2522.5,2522.1,4.73884]
[1730460944433,7.92885,2522.5,2522.1,0.7739]
[1730460944634,3.96438,2522.5,2522.1,0.7739]
[1730460944829,3.96438,2522.5,2522.1,4.73883]
[1730460945620,3.96438,2522.5,2522.1,5.79049002]
[1730460946355,3.96438,2522.5,2522.1,1.82556002]
[1730460946558,7.92881,2522.5,2522.1,1.82556002]
[1730460947265,7.92882,2522.5,2522.1,1.82556002]
[1730460947420,3.964,2522.7,2522.1,0.7739]
[1730460947620,3.96475,2522.3,2522.1,0.7739]
[1730460947827,3.96464,2522.3,2522.1,0.7739]
[1730460948021,3.96451,2522.4,2522.1,0.7739]
[1730460948450,3.96463,2522.3,2522.1,0.7739]
[1730460949228,3.96454,2522.4,2522.1,0.7739]
[1730460950761,3.96464,2522.3,2522.1,0.7739]
[1730460952464,0.6576,2522.5,2521.8,5.77812017]
[1730460952690,3.96497,2522.1,2521.9,0.8196]
[1730460952870,3.9651,2522.0,2521.7,0.8196]
[1730460953081,3.96527,2521.9,2521.7,0.8196]
[1730460953260,0.6576,2522.1,2521.7,0.8196]
[1730460953459,4.62256,2522.1,2521.7,4.78515]
[1730460953860,4.62256,2522.1,2521.7,0.8196]
[1730460954050,4.62256,2522.1,2521.7,6.59790017]
[1730460954252,8.58759,2522.1,2521.7,4.78517]
[1730460954461,8.58759,2522.1,2521.7,0.8196]
[1730460955283,4.62256,2522.1,2521.8,0.1054021]
[1730460955694,3.96522,2522.0,2521.7,0.8196]
[1730460955894,3.96522,2522.0,2521.9,0.10533566]
[1730460956197,3.96522,2522.0,2521.8,0.1054021]
[1730460956426,3.96522,2522.0,2521.9,0.10533566]
[1730460956746,3.96522,2522.0,2521.7,0.8196]
[1730460956952,3.96522,2522.0,2521.9,0.10533566]
[1730460957150,3.96522,2522.0,2521.8,0.1054021]
[1730460957375,3.96522,2522.0,2521.9,0.10533566]
[1730460957789,3.96522,2522.0,2521.7,0.8196]
[1730460957967,3.96522,2522.0,2521.9,0.10533566]
[1730460958166,3.96522,2522.0,2521.8,0.10555757]
[1730460958496,3.96522,2522.0,2521.9,0.10549113]
[1730460958855,3.96522,2522.0,2521.7,0.8196]
[1730460959078,4.62256,2522.1,2521.9,0.10549113]
[1730460959387,3.96496,2522.1,2521.8,0.10555757]
[1730460959592,3.96496,2522.1,2522.0,0.10542469]
[1730460959753,3.96496,2522.1,2521.9,0.10549113]
[1730460959954,7.92999,2522.1,2522.0,0.10542469]
[1730460960188,3.96496,2522.1,2522.0,0.10542469]
[1730460960653,3.96496,2522.1,2521.7,3.29213519]
[1730460960956,3.96496,2522.1,2522.0,0.10542469]
[1730460961157,3.96496,2522.1,2521.7,7.25769519]
[1730460961383,3.96496,2522.1,2522.0,0.10542469]
[1730460961883,3.96496,2522.1,2521.7,3.29213519]
[1730460962161,3.96511,2522.0,2521.7,3.29213519]
[1730460962374,7.93029,2522.0,2521.7,3.29213519]
[1730460963277,3.96511,2522.0,2521.7,3.29213519]
[1730460963795,3.96555,2521.8,2521.5,0.7527]
[1730460964505,3.96559,2521.7,2521.5,0.7527]
[1730460964998,7.93112,2521.8,2521.5,0.7527]
[1730460965160,3.96529,2521.9,2521.6,1.81273017]
[1730460965493,3.96529,2521.9,2521.7,0.25654302]
[1730460965801,3.96542,2521.8,2521.7,0.25654302]
[1730460966595,3.96573,2521.6,2521.5,0.7527]
[1730460967576,3.96562,2521.7,2521.5,0.7527]
[1730460967778,7.93132,2521.7,2521.5,0.7527]
[1730460968702,3.96573,2521.6,2521.5,0.7527]
[1730460968999,0.6576,2521.6,2521.2,0.8003]
[1730460969174,3.9662,2521.3,2521.0,2.67251422]
[1730460969369,3.9662,2521.3,2521.0,3.33643464]
[1730460969969,3.96612,2521.4,2521.0,7.30306464]
[1730460970367,3.96612,2521.4,2521.1,0.10278089]
[1730460970771,3.96623,2521.3,2521.1,0.10278089]
[1730460971113,6.43608017,2521.6,2521.1,0.10278089]
[1730460971276,3.96617,2521.4,2521.2,1.81273017]
[1730460971603,3.96551,2521.8,2521.4,4.76654]
[1730460971804,3.96551,2521.8,2521.5,1.81273017]
[1730460972115,3.96513,2522.0,2521.5,1.90867265]
[1730460972399,3.96528,2521.9,2521.5,5.87456265]
[1730460972565,3.96528,2521.9,2521.5,1.90867265]
[1730460972759,3.96548,2521.8,2521.5,1.90867265]
[1730460973006,3.96548,2521.8,2521.5,2.97281391]
[1730460973174,3.96539,2521.9,2521.5,2.97281391]
[1730460973471,3.96545,2521.8,2521.5,2.97281391]
[1730460974005,0.6576,2522.1,2521.6,3.9657]
[1730460974006,3.96523,2522.0,2521.6,3.9657]
[1730460974166,4.62258,2522.1,2521.5,6.93868391]
[1730460974367,3.96517,2522.0,2521.7,0.91090957]
[1730460974593,3.96517,2522.0,2521.7,0.8151]
[1730460974897,3.96517,2522.0,2521.8,0.09574313]
[1730460975364,3.96526,2521.9,2521.7,0.8151]
[1730460975565,3.96517,2522.0,2521.7,0.8151]
[1730460975904,3.96501,2522.1,2521.7,7.43654915]
[1730460976481,3.96516,2522.0,2521.7,3.47099915]
[1730460977174,3.96495,2522.1,2521.7,7.43653915]
[1730460978271,7.93,2522.1,2521.7,7.43653915]
[1730460978605,7.93,2522.1,2521.8,1.14022392]
[1730460978820,3.9651,2522.0,2521.8,1.14022392]
[1730460979378,3.96495,2522.1,2521.8,1.14022392]
[1730460980081,3.96479,2522.2,2521.8,1.14022392]
[1730460980577,3.96502,2522.1,2521.8,1.14022392]
[1730460980824,3.96502,2522.1,2521.7,6.59340017]
[1730460981320,3.96502,2522.1,2521.7,2.62783017]
[1730460981483,3.96502,2522.1,2521.7,6.59340017]
[1730460982216,7.93008,2522.1,2521.7,6.59340017]
[1730460982423,3.96502,2522.1,2521.7,7.64931319]
[1730460984726,7.93006,2522.1,2521.7,7.64931319]
[1730460985402,7.93006,2522.1,2521.8,0.09558758]
[1730460985723,3.96502,2522.1,2521.7,7.64931319]
[1730460986018,3.96502,2522.1,2521.9,0.09552114]
[1730460986216,3.96502,2522.1,2521.8,0.09558758]
[1730460986540,3.96502,2522.1,2521.9,0.09552114]
[1730460986944,3.96502,2522.1,2521.7,6.59340017]
[1730460987244,3.96502,2522.1,2522.0,0.7549]
[1730460987542,3.96502,2522.1,2522.0,0.85035471]
[1730460988616,7.79570741,2522.3,2522.0,0.85035471]
[1730460990456,3.83092741,2522.3,2522.0,0.85035471]
[1730460990751,5.68956827,2522.7,2522.0,5.4782462]
[1730460990946,4.62163,2522.7,2522.1,3.96488]
[1730460991147,0.6576,2522.7,2522.1,1.81273017]
[1730460991311,0.6576,2522.7,2522.2,0.42781406]
[1730460991512,0.6576,2522.7,2522.3,0.8174]
[1730460991936,0.6576,2522.7,2522.4,0.09508704]
[1730460992644,0.6576,2523.0,2522.5,5.77699017]
[1730460992810,3.83092741,2523.1,2522.6,0.8923109]
[1730460993011,3.96353,2523.0,2522.6,0.8923109]
[1730460993455,3.96377,2522.9,2522.6,0.8923109]
[1730460993911,3.96377,2522.9,2522.6,0.0949109]
[1730460994134,3.96391,2522.8,2522.6,0.0949109]
[1730460994359,3.96391,2522.8,2522.4,0.8167]
[1730460994531,4.62151,2522.8,2522.7,0.09464058]
[1730460994732,4.62151,2522.8,2522.3,3.96458]
[1730460995025,4.62151,2522.8,2522.7,0.09464058]
[1730460995231,0.6576,2522.8,2522.7,0.09464058]
[1730460995425,5.77629017,2523.0,2522.7,0.09464058]
[1730460995636,3.96356,2523.0,2522.8,0.09457419]
[1730460995839,7.9272,2523.0,2522.8,0.09457419]
[1730460996069,7.9272,2523.0,2522.6,0.8286]
[1730460996269,3.96356,2523.0,2522.9,0.0945078]
[1730460996429,7.92721,2523.0,2522.6,0.8286]
[1730460996736,3.96356,2523.0,2522.6,0.8286]
[1730460996938,3.9637,2522.9,2522.7,0.09464058]
[1730460997171,3.96356,2523.0,2522.7,0.09464058]
[1730460997341,3.83092741,2523.1,2522.8,3.96376]
[1730460997535,3.83092741,2523.1,2522.9,1.81273017]
[1730460997865,3.96307,2523.3,2523.0,0.7931]
[1730460998081,3.96307,2523.3,2523.0,0.88754142]
[1730460998234,3.9631,2523.3,2523.0,0.88754142]
[1730460998439,3.9629,2523.4,2523.0,0.88754142]
[1730460998769,3.9629,2523.4,2523.0,1.55393658]
[1730460999368,3.96337,2523.1,2523.0,0.09444142]
[1730460999575,3.96355,2523.0,2522.8,0.7633]
[1730460999746,3.96369,2522.9,2522.6,0.7633]
[1730460999945,3.96355,2523.0,2522.6,0.7633]
[1730461000254,3.96355,2523.0,2522.7,0.0911625]
[1730461000474,3.96355,2523.0,2522.7,1.90389267]
[1730461001154,3.96331,2523.2,2522.7,1.90389267]
[1730461001155,3.96331,2523.2,2522.7,5.86780267]
[1730461001345,7.92664,2523.2,2522.7,5.86780267]
[1730461001759,7.92665,2523.2,2522.7,5.86780267]
[1730461001971,7.92665,2523.2,2522.7,6.99273034]
[1730461002168,3.96331,2523.2,2522.8,3.96377]
[1730461002368,3.96331,2523.2,2522.8,4.05186277]
[1730461002575,7.92667,2523.2,2522.8,0.08809277]
[1730461002745,3.96337,2523.1,2522.8,0.08809277]
[1730461003249,3.96337,2523.1,2522.6,5.38148402]
[1730461003250,3.96337,2523.1,2522.9,0.0851224]
[1730461003449,3.96337,2523.1,2522.6,5.38148402]
[1730461003882,7.92684,2523.1,2522.7,0.08244643]
[1730461004578,3.96337,2523.1,2522.7,0.08244643]
[1730461004780,3.96378,2522.9,2522.7,0.08244643]
[1730461008101,3.96384,2522.8,2522.7,0.08244643]
[1730461008853,3.96384,2522.8,2522.4,4.71766]
[1730461009102,3.96378,2522.9,2522.7,0.07964823]
[1730461009267,3.96378,2522.9,2522.5,5.77700017]
[1730461009461,3.96378,2522.9,2522.5,5.8567812]
[1730461010994,4.62108,2523.1,2522.5,5.8567812]
[1730461011196,1.81273017,2523.4,2522.7,1.81273017]
[1730461011197,3.96317,2523.3,2522.7,1.81273017]
[1730461011404,3.96332,2523.2,2522.7,5.77661017]
[1730461011705,3.96341,2523.1,2522.8,0.0794901]
[1730461012109,3.96337,2523.1,2522.8,0.0794901]
[1730461012267,3.96354,2523.0,2522.8,0.0794901]
[1730461012700,7.92722,2523.0,2522.8,0.0794901]
[1730461012907,3.96369,2522.9,2522.8,0.0794901]
[1730461013207,4.6212,2523.0,2522.9,0.07940843]
[1730461013361,4.6212,2523.0,2522.8,0.07947482]
[1730461013567,3.96371,2522.9,2522.6,0.828]
[1730461013808,8.58484,2523.0,2522.9,0.07940843]
[1730461014001,8.58484,2523.0,2522.6,0.828]
[1730461014002,3.96375,2522.9,2522.6,0.828]
[1730461014307,4.6212,2523.0,2522.6,0.828]
[1730461014476,0.6576,2523.0,2522.4,3.96436]
[1730461014805,3.96379,2522.9,2522.4,3.96436]
[1730461015008,3.96379,2522.9,2522.5,3.9643]
[1730461015296,3.96379,2522.9,2522.5,4.04398401]
[1730461018018,3.96385,2522.8,2522.5,0.07967401]
[1730461018471,3.96385,2522.8,2522.4,3.96447]
[1730461018675,3.96385,2522.8,2522.5,0.07967401]
[1730461018907,7.92784,2522.8,2522.5,0.07967401]
[1730461020026,7.92784,2522.8,2522.6,0.07960761]
[1730461020524,3.96385,2522.8,2522.3,6.57802017]
[1730461020681,3.96385,2522.8,2522.7,0.07957178]
[1730461021090,3.96385,2522.8,2522.3,6.57802017]
[1730461021294,3.96385,2522.8,2522.7,0.07957178]
[1730461021494,3.96385,2522.8,2522.3,6.57802017]
[1730461021719,3.96385,2522.8,2522.4,3.96446]
[1730461021879,3.96385,2522.8,2522.4,4.0442743]
[1730461023619,0.6576,2523.0,2522.4,0.0798143]
[1730461023824,3.96385,2522.8,2522.4,4.0442543]
[1730461024590,3.96396,2522.8,2522.4,0.0798143]
[1730461024786,3.96401,2522.7,2522.4,0.0798143]
[1730461026727,3.96386,2522.8,2522.4,4.0442043]
[1730461027605,7.92753,2522.9,2522.5,5.77704017]
[1730461027792,7.92753,2522.9,2522.5,5.85679315]
[1730461027997,3.96385,2522.8,2522.5,1.89248315]
[1730461031511,3.96385,2522.8,2522.6,0.7874]
[1730461031936,3.96385,2522.8,2522.7,0.07962019]
[1730461035236,4.62145,2522.8,2522.7,0.07962019]
[1730461035441,3.96451,2522.4,2522.2,0.8235]
[1730461037130,3.96451,2522.4,2522.0,4.73121]
[1730461037338,3.96451,2522.4,2522.1,1.81273017]
[1730461037994,3.96433,2522.5,2522.1,5.77767017]
[1730461038441,3.96433,2522.5,2522.1,1.81273017]
[1730461040741,3.96433,2522.5,2522.1,5.77765017]
[1730461040941,3.96425,2522.6,2522.1,1.81273017]
[1730461040942,3.96447,2522.4,2522.1,1.81273017]
[1730461045064,3.9643,2522.6,2522.1,1.81273017]
[1730461045381,3.96434,2522.5,2522.2,0.07728877]
[1730461045665,3.96453,2522.4,2522.2,0.07728877]
[1730461046336,3.96417,2522.6,2522.2,0.07728877]
[1730461046534,3.96433,2522.5,2522.2,0.07728877]
[1730461046941,3.96448,2522.4,2522.2,0.07728877]
[1730461047148,3.96433,2522.5,2522.2,0.07728877]
[1730461047743,3.96449,2522.4,2522.2,0.07728877]
[1730461048484,0.6576,2522.8,2522.4,0.8057]
[1730461048693,3.96402,2522.7,2522.5,1.81273017]
[1730461048978,3.96402,2522.7,2522.5,0.07708953]
[1730461049384,7.92812,2522.7,2522.5,0.07708953]
[1730461050088,3.96416,2522.6,2522.5,0.07708953]
[1730461053656,3.96434,2522.5,2522.2,0.7514]
[1730461053963,3.96434,2522.5,2522.2,1.91417224]
[1730461054777,7.92876,2522.5,2522.2,1.91417224]
[1730461054983,3.96434,2522.5,2522.2,1.91417224]
[1730461055188,3.96434,2522.5,2522.2,0.7514]
[1730461057259,3.96454,2522.4,2522.2,0.7514]
[1730461057499,3.96434,2522.5,2522.2,0.7514]
[1730461057866,3.96419,2522.6,2522.2,0.7514]
[1730461058295,3.96418,2522.6,2522.3,1.81273017]
[1730461059190,3.96434,2522.5,2522.3,1.81273017]
[1730461059794,3.96445,2522.5,2522.2,0.7514]
[1730461060202,3.96445,2522.5,2522.3,0.07722994]
[1730461060587,3.96447,2522.4,2522.3,0.07722994]
[1730461060782,3.96447,2522.4,2521.8,4.74273]
[1730461060977,3.96472,2522.3,2521.8,4.74273]
[1730461061291,3.96499,2522.1,2521.8,0.7774]
[1730461062386,3.96482,2522.2,2521.9,1.81273017]
[1730461063016,7.92973,2522.2,2521.9,1.81273017]
[1730461063186,7.92971,2522.2,2521.9,1.81273017]
[1730461063520,3.96482,2522.2,2521.9,1.81273017]
[1730461063713,3.96495,2522.1,2521.9,1.81273017]
[1730461064733,3.9651,2522.0,2521.8,0.7774]
[1730461065016,3.9651,2522.0,2521.7,1.81273017]
[1730461065384,3.96495,2522.1,2521.7,1.81273017]
[1730461065719,7.93001,2522.1,2521.7,1.81273017]
[1730461066021,0.6576,2522.3,2521.7,1.81273017]
[1730461066183,3.96495,2522.1,2521.7,5.77823017]
[1730461066378,3.96495,2522.1,2521.7,6.8676863]
[1730461067685,7.93004,2522.1,2521.7,6.8676863]
[1730461067983,0.6576,2522.3,2521.7,1.81273017]
[1730461068184,3.96529,2521.9,2521.7,1.81273017]
[1730461069705,3.96497,2522.1,2521.7,1.81273017]
[1730461069706,3.96511,2522.0,2521.7,1.81273017]
[1730461073229,3.96497,2522.1,2521.7,5.77823017]
[1730461073924,3.96497,2522.1,2521.7,1.81273017]
[1730461074087,3.96511,2522.0,2521.7,1.81273017]
[1730461075420,3.96497,2522.1,2521.8,0.05941157]
[1730461075718,3.96497,2522.1,2521.7,5.77830017]
[1730461075905,3.96497,2522.1,2521.9,0.05551703]
[1730461076109,7.93006,2522.1,2521.8,0.05558347]
[1730461076286,7.93006,2522.1,2522.0,0.0554506]
[1730461076485,3.9651,2522.0,2521.9,0.05551703]
[1730461076706,3.9651,2522.0,2521.7,1.81273017]
[1730461081151,3.96527,2521.9,2521.7,1.81273017]
[1730461081457,3.96549,2521.8,2521.6,0.8305]
[1730461082227,3.9658,2521.6,2521.4,0.8013]
[1730461082516,3.96606,2521.4,2521.2,1.10106337]
[1730461082747,3.9662,2521.3,2521.2,1.10106337]
[1730461083215,3.96605,2521.4,2521.1,1.81273017]
[1730461083416,3.96591,2521.5,2521.2,1.81273017]